fUSD/lending_fUSD_20251217
["ID","MTS","AMOUNT","RATE_DAILY","PERIOD"]
[398932216,1766004650136,-150.0,0.00016986,2]
[398932217,1766004650146,-150.00000001,0.00016986,2]
[398932218,1766004650156,-150.65844905,0.00016986,2]
[398932219,1766004650165,-280.62987413,0.00016986,2]
[398932220,1766004650175,-151.0803606,0.00016986,2]
[398932221,1766004650184,-153.15599333,0.00016986,2]
[398932222,1766004650193,-150.91550183,0.00016986,2]
[398932223,1766004650202,-150.00000001,0.00016986,2]
[398932224,1766004650211,-150.00000001,0.00016986,2]
[398932225,1766004650221,-150.0,0.0001699,2]
[398932226,1766004650230,-1863.87983717,0.0001699,2]
[398932227,1766004650239,-1863.87983717,0.0001699,2]
[398932228,1766004650248,-151.0,0.00016997,2]
[398932229,1766004650257,-500.0,0.00016999,2]
[398932230,1766004650266,-500.0,0.00016999,2]
[398932231,1766004650276,-500.0,0.00016999,2]
[398932232,1766004650285,-500.0,0.00016999,2]
[398932233,1766004650295,-500.0,0.00016999,2]
[398932234,1766004650304,-500.0,0.00016999,2]
[398932235,1766004650313,-238.49401825,0.00016999,2]
[398932236,1766004650322,-500.0,0.00016999,2]
[398932237,1766004650331,-500.0,0.00016999,2]
[398932238,1766004650340,-500.0,0.00016999,2]
[398932239,1766004650349,-500.0,0.00016999,2]
[398932240,1766004650358,-451.03371889,0.00016999,2]
[398932241,1766004650367,-359.44010989,0.00016999,2]
[398932242,1766004650376,-500.0,0.00016999,2]
[398932243,1766004650385,-500.0,0.00016999,2]
[398932244,1766004650394,-500.0,0.00016999,2]
[398932245,1766004650404,-500.0,0.00016999,2]
[398932246,1766004650413,-500.0,0.00016999,2]
[398932247,1766004650422,-500.0,0.00016999,2]
[398932248,1766004650431,-500.0,0.00016999,2]
[398932249,1766004650441,-570.78587963,0.00016999,2]
[398932250,1766004650450,-358.93,0.00016999,2]
[398932251,1766004650460,-500.0,0.00016999,2]
[398932252,1766004650469,-500.0,0.00016999,2]
[398932253,1766004650478,-500.0,0.00016999,2]
[398932254,1766004650488,-460.64,0.00016999,2]
[398932255,1766004650497,-452.42388811,0.00016999,2]
[398932256,1766004650506,-157.12,0.00016999,2]
[398932257,1766004650516,-4951791.94776173,0.00017,2]
[398932258,1766004652209,-2103.85160838,0.00017,2]
[398932259,1766004652430,-500.0,0.00013497,2]
[398932260,1766004652494,-500.0,0.00013497,2]
[398932261,1766004652504,-500.0,0.00013497,2]
[398932262,1766004652514,-500.0,0.00013497,2]
[398932263,1766004652524,-500.0,0.00013498,2]
[398932264,1766004652533,-500.0,0.00013699,2]
[398932265,1766004652542,-500.0,0.00013699,2]
[398932266,1766004652551,-500.0,0.00013699,2]
[398932267,1766004652560,-500.0,0.00013699,2]
[398932268,1766004652569,-500.0,0.00013699,2]
[398932269,1766004652578,-500.0,0.00013772,2]
[398932270,1766004652587,-500.0,0.00014046,2]
[398932271,1766004652596,-500.0,0.0001432,2]
[398932272,1766004652604,-133146.68629154,0.00017,2]
[398932273,1766004652732,-500.0,0.00013497,2]
[398932274,1766004652741,-500.0,0.00013497,2]
[398932275,1766004652750,-500.0,0.00013497,2]
[398932277,1766004652759,-214.06444484,0.00013699,2]
[398932278,1766004652770,-285.93555516,0.00013699,2]
[398932279,1766004652778,-276.68325613,0.00013699,2]
[398932280,1766004652827,-500.0,0.00013497,2]
[398932281,1766004652836,-223.31674387,0.00013699,2]
[398932282,1766004652845,-500.0,0.00013699,2]
[398932283,1766004652854,-500.0,0.00013699,2]
[398932284,1766004652863,-500.0,0.00013699,2]
[398932285,1766004652873,-905.30621074,0.00016438,2]
[398932286,1766004652884,-398.81886989,0.00016438,2]
[398932287,1766004652894,-1129.88770425,0.00016438,2]
[398932288,1766004652966,-500.0,0.00013497,2]
[398932289,1766004652975,-500.0,0.00013497,2]
[398932290,1766004652984,-500.0,0.00013699,2]
[398932291,1766004652994,-500.0,0.00013699,2]
[398932292,1766004653004,-174.23737638,0.00016438,2]
[398932293,1766004653013,-1304.12508063,0.00016438,2]
[398932294,1766004653024,-1304.12508063,0.00016438,2]
[398932295,1766004653034,-1304.12508063,0.00016438,2]
[398932296,1766004653044,-1304.12508063,0.00016438,2]
[398932297,1766004653056,-1304.12508063,0.00016438,2]
[398932298,1766004653066,-102360.9316081,0.00017,2]
[398932299,1766004653078,-360.42425931,0.00017,2]
[398932301,1766004653189,-500.0,0.00013497,2]
[398932302,1766004653210,-322.61512255,0.00013699,2]
[398932303,1766004653233,-177.38487745,0.00013699,2]
[398932304,1766004653252,-500.0,0.00013699,2]
[398932305,1766004653272,-1304.12508063,0.00016438,2]
[398932306,1766004653293,-1304.12508063,0.00016438,2]
[398932307,1766004653311,-26498.11402178,0.00017,2]
[398932308,1766004653327,-1244.52080482,0.00017,2]
[398932309,1766004653426,-285.2165934,0.00013699,2]
[398932310,1766004653441,-567.24503744,0.00016438,2]
[398932311,1766004653460,-411.88793493,0.00016438,2]
[398932315,1766004655094,-475.776,0.00013497,2]
[398932316,1766004655115,-24.224,0.00013497,2]
[398932317,1766004655129,-500.0,0.00013497,2]
[398932318,1766004655141,-500.0,0.00013497,2]
[398932319,1766004655155,-500.0,0.00013497,2]
[398932320,1766004655168,-500.0,0.00013497,2]
[398932321,1766004655183,-183.73657256,0.00013497,2]
[398932322,1766004655197,-316.26342744,0.00013497,2]
[398932323,1766004655206,-500.0,0.00013497,2]
[398932324,1766004655216,-500.0,0.00013497,2]
[398932325,1766004655224,-500.0,0.00013497,2]
[398932326,1766004655233,-500.0,0.00013497,2]
[398932327,1766004655243,-500.0,0.00013497,2]
[398932328,1766004655772,-225.24404011,0.00013497,2]
[398932329,1766004655817,-274.75595989,0.00013497,2]
[398932330,1766004655852,-391.35043911,0.00013497,2]
[398932331,1766004655876,-108.64956089,0.00013497,2]
[398932332,1766004655886,-500.0,0.00013497,2]
[398932333,1766004655895,-500.0,0.00013497,2]
[398932334,1766004655905,-500.0,0.00013497,2]
[398932335,1766004655914,-500.0,0.00013497,2]
[398932336,1766004655923,-500.0,0.00013497,2]
[398932337,1766004655932,-391.35043911,0.00013497,2]
[398932338,1766004655944,-108.64956089,0.00013497,2]
[398932339,1766004655953,-500.0,0.00013497,2]
[398932340,1766004655962,-500.0,0.00013497,2]
[398932341,1766004655971,-500.0,0.00013497,2]
[398932342,1766004655981,-112.95043911,0.00013497,2]
[398932343,1766004655996,-371.28768794,0.00013497,2]
[398932344,1766004656011,-15.76187295,0.00013497,2]
[398932345,1766004656020,-500.0,0.00013497,2]
[398932346,1766004656030,-500.0,0.00013497,2]
[398932347,1766004656040,-467.98063301,0.00013497,2]
[398932348,1766004656152,-32.01936699,0.00013497,2]
[398932349,1766004656162,-500.0,0.00013497,2]
[398932350,1766004656171,-500.0,0.00013699,2]
[398932351,1766004656181,-500.0,0.00013699,2]
[398932352,1766004656190,-324.45406182,0.00013699,2]
[398932353,1766004656201,-175.54593818,0.00013699,2]
[398932354,1766004656211,-500.0,0.00013699,2]
[398932355,1766004656220,-500.0,0.00013699,2]
[398932356,1766004656229,-500.0,0.00013699,2]
[398932357,1766004656238,-500.0,0.00013699,2]
[398932358,1766004656248,-500.0,0.00013699,2]
[398932359,1766004656257,-324.99210826,0.00016438,2]
[398932360,1766004656267,-1304.12508063,0.00016438,2]
[398932361,1766004656277,-1304.12508063,0.00016438,2]
[398932362,1766004656287,-1304.12508063,0.00016438,2]
[398932363,1766004656296,-1121.03954663,0.00016438,2]
[398932364,1766004656485,-183.085534,0.00016438,2]
[398932365,1766004656495,-1304.12508063,0.00016438,2]
[398932366,1766004656504,-1304.12508063,0.00016438,2]
[398932367,1766004656513,-1304.12508063,0.00016438,2]
[398932368,1766004656522,-1304.12508063,0.00016438,2]
[398932369,1766004656531,-880.28774344,0.00016438,2]
[398932370,1766004656546,-423.83733719,0.00016438,2]
[398932371,1766004656555,-1304.12508063,0.00016438,2]
[398932372,1766004656567,-1304.12508063,0.00016438,2]
[398932373,1766004656576,-1304.12508063,0.00016438,2]
[398932374,1766004656585,-1304.12508063,0.00016438,2]
[398932375,1766004656594,-327.36802677,0.00016438,2]
[398932376,1766004656605,-404.2036,0.00016438,2]
[398932377,1766004656619,-572.55345386,0.00016438,2]
[398932378,1766004656629,-1304.12508063,0.00016438,2]
[398932379,1766004656638,-1304.12508063,0.00016438,2]
[398932380,1766004656647,-1304.12508063,0.00016438,2]
[398932381,1766004656657,-1304.12508063,0.00016438,2]
[398932382,1766004656666,-253.48222476,0.00016438,2]
[398932385,1766005482943,647.0,0.00022,30]
[398932393,1766005831502,-200.0,0.00012208,2]
[398932394,1766005831511,-183.04,0.000123,2]
[398932395,1766005831520,-195.0,0.00012457,2]
[398932396,1766005831530,-1600.0,0.00012614,2]
[398932397,1766005831539,-195.0,0.00012643,2]
[398932398,1766005831549,-250.0,0.00012673,2]
[398932399,1766005831558,-195.0,0.00012692,2]
[398932400,1766005831567,-250.0,0.00012708,2]
[398932401,1766005831577,-300.0,0.00012812,2]
[398932402,1766005831586,-300.0,0.00012812,2]
[398932403,1766005831595,-1200.0,0.00012812,2]
[398932404,1766005831604,-15094.76301647,0.00012813,2]
[398932405,1766005831616,-474.78399393,0.00012813,2]
[398932406,1766005831637,-23997.72021115,0.00012813,2]
[398932407,1766005831648,-4638.41282382,0.00012813,2]
[398932408,1766005831660,-13285.14,0.00012813,2]
[398932409,1766005831671,-4308.48920621,0.00012813,2]
[398932410,1766005831717,-5187.80675912,0.00012813,2]
[398932511,1766005837531,-500.0,0.00012812,2]
[398932512,1766005837541,-500.0,0.00012812,2]
[398932513,1766005837551,-500.0,0.00012812,2]
[398932514,1766005837561,-500.0,0.00012812,2]
[398932515,1766005837570,-500.0,0.00012812,2]
[398932516,1766005837579,-500.0,0.00012812,2]
[398932517,1766005837588,-500.0,0.00012812,2]
[398932518,1766005837598,-500.0,0.00012812,2]
[398932519,1766005837607,-500.0,0.00012812,2]
[398932520,1766005837617,-500.0,0.00012812,2]
[398932521,1766005837626,-0.00603752,0.00012812,2]
[398932522,1766005837648,-499.99396248,0.00012812,2]
[398932523,1766005837658,-500.0,0.00012812,2]
[398932524,1766005837667,-500.0,0.00012812,2]
[398932525,1766005837677,-500.0,0.00012812,2]
[398932526,1766005837686,-500.0,0.00012812,2]
[398932527,1766005837695,-500.0,0.00012812,2]
[398932528,1766005837704,-500.0,0.00012812,2]
[398932529,1766005837713,-500.0,0.00012812,2]
[398932530,1766005837722,-500.0,0.00012812,2]
[398932531,1766005837732,-500.0,0.00012812,2]
[398932532,1766005837741,-500.0,0.00012812,2]
[398932534,1766005837750,-500.0,0.00012812,2]
[398932535,1766005837759,-500.0,0.00012812,2]
[398932537,1766005837769,-500.0,0.00012812,2]
[398932540,1766005837778,-282.4790111,0.00012812,2]
[398932542,1766005837787,-500.0,0.00012812,2]
[398932543,1766005837796,-500.0,0.00012812,2]
[398932545,1766005837806,-500.0,0.00012812,2]
[398932547,1766005837815,-693012.8839893,0.00012813,2]
[398932549,1766005837824,-150.0,0.00012868,2]
[398932551,1766005837833,-983.605,0.00012872,2]
[398932553,1766005837842,-1200.0,0.0001291,2]
[398932554,1766005837852,-300.0,0.00012911,2]
[398932557,1766005837861,-3483.157,0.00012912,2]
[398932559,1766005837870,-176.455,0.00012912,2]
[398932561,1766005837880,-150.0,0.00012912,2]
[398932563,1766005837889,-48436.0,0.00012913,2]
[398932565,1766005837898,-2187.77,0.00012913,2]
[398932567,1766005837906,-150.99,0.00012913,2]
[398932569,1766005837915,-999.99,0.00012913,2]
[398932571,1766005837924,-404.9,0.00012913,2]
[398932573,1766005837933,-398.39,0.00012913,2]
[398932575,1766005837942,-150.99,0.00012913,2]
[398932577,1766005837951,-9999.99,0.00012913,2]
[398932579,1766005837960,-1000.0,0.00012972,2]
[398932581,1766005837969,-9999.99,0.00012972,2]
[398932583,1766005837978,-7618.35,0.00012972,2]
[398932585,1766005837991,-9999.99,0.00012972,2]
[398932587,1766005838000,-9999.99,0.00012972,2]
[398932589,1766005838010,-1530.11,0.00012972,2]
[398932591,1766005838020,-11264.98,0.00012976,2]
[398932593,1766005838029,-908.14587518,0.00013096,2]
[398932595,1766005838038,-323.0,0.00013135,2]
[398932597,1766005838047,-24939.3017,0.00013199,2]
[398932599,1766005838057,-19623.67049749,0.00013199,2]
[398932601,1766005838066,-2500.0,0.00013298,2]
[398932603,1766005838076,-7542.7993,0.00013342,2]
[398932605,1766005838086,-167.51806982,0.00013373,2]
[398932607,1766005838095,-500.0,0.00013373,2]
[398932609,1766005838105,-549.65597916,0.00013373,2]
[398932611,1766005838114,-500.0,0.00013373,2]
[398932614,1766005838124,-500.0,0.00013373,2]
[398932616,1766005838133,-500.0,0.00013373,2]
[398932618,1766005838143,-500.35110535,0.00013373,2]
[398932620,1766005838152,-562.4542945,0.00013373,2]
[398932622,1766005838162,-500.0,0.00013373,2]
[398932624,1766005838172,-500.0,0.00013373,2]
[398932625,1766005838182,-216.18014628,0.00013373,2]
[398932627,1766005838191,-500.1936276,0.00013373,2]
[398932628,1766005838201,-500.0,0.00013373,2]
[398932629,1766005838211,-160.16120282,0.00013373,2]
[398932630,1766005838220,-500.0,0.00013373,2]
[398932631,1766005838230,-500.0,0.00013373,2]
[398932632,1766005838239,-500.0,0.00013373,2]
[398932633,1766005838248,-500.0,0.00013391,2]
[398932634,1766005838258,-194.21929349,0.00013391,2]
[398932635,1766005838268,-151.0,0.00013391,2]
[398932636,1766005838278,-151.0,0.00013391,2]
[398932637,1766005838288,-200.0,0.00013391,2]
[398932638,1766005838298,-151.0,0.00013391,2]
[398932639,1766005838307,-151.0,0.00013391,2]
[398932640,1766005838317,-151.0,0.00013391,2]
[398932641,1766005838327,-151.0,0.00013391,2]
[398932642,1766005838856,-151.0,0.00013391,2]
[398932643,1766005838866,-500.0,0.00013391,2]
[398932644,1766005838876,-151.0,0.00013391,2]
[398932645,1766005838885,-500.0,0.00013391,2]
[398932646,1766005838895,-151.0,0.00013391,2]
[398932647,1766005838904,-500.0,0.00013391,2]
[398932648,1766005838913,-151.0,0.00013391,2]
[398932649,1766005838922,-500.0,0.00013391,2]
[398932650,1766005838932,-151.0,0.00013391,2]
[398932651,1766005838941,-500.0,0.00013391,2]
[398932652,1766005838951,-151.0,0.00013391,2]
[398932653,1766005838961,-500.0,0.00013391,2]
[398932654,1766005838970,-151.0,0.00013391,2]
[398932655,1766005838984,-500.0,0.00013391,2]
[398932656,1766005838994,-151.0,0.00013391,2]
[398932657,1766005839003,-500.0,0.00013391,2]
[398932658,1766005839012,-151.0,0.00013391,2]
[398932659,1766005839022,-500.0,0.00013391,2]
[398932660,1766005839032,-151.0,0.00013391,2]
[398932661,1766005839041,-500.0,0.00013391,2]
[398932662,1766005839051,-151.0,0.00013391,2]
[398932663,1766005839060,-500.0,0.00013391,2]
[398932664,1766005839070,-151.0,0.00013391,2]
[398932665,1766005839079,-500.0,0.00013391,2]
[398932666,1766005839089,-151.0,0.00013391,2]
[398932667,1766005839098,-500.0,0.00013391,2]
[398932668,1766005839107,-151.0,0.00013391,2]
[398932669,1766005839116,-200.0,0.00013391,2]
[398932670,1766005839125,-151.0,0.00013391,2]
[398932671,1766005839134,-200.0,0.00013391,2]
[398932672,1766005839143,-151.0,0.00013391,2]
[398932673,1766005839152,-151.0,0.00013391,2]
[398932674,1766005839162,-151.0,0.00013391,2]
[398932675,1766005839171,-151.0,0.00013391,2]
[398932676,1766005839180,-151.0,0.00013391,2]
[398932677,1766005839190,-151.0,0.00013391,2]
[398932678,1766005839199,-151.0,0.00013391,2]
[398932679,1766005839208,-151.0,0.00013391,2]
[398932680,1766005839218,-151.0,0.00013391,2]
[398932681,1766005839226,-151.0,0.00013391,2]
[398932682,1766005839235,-151.0,0.00013391,2]
[398932683,1766005839243,-500.0,0.00013391,2]
[398932685,1766005839252,-151.0,0.00013391,2]
[398932686,1766005839261,-500.0,0.00013391,2]
[398932687,1766005839270,-500.0,0.00013391,2]
[398932688,1766005839281,-500.0,0.00013391,2]
[398932689,1766005839290,-500.0,0.00013391,2]
[398932690,1766005839300,-500.0,0.00013391,2]
[398932691,1766005839309,-1620.49,0.00013391,2]
[398932692,1766005839319,-887.863358,0.0001343,2]
[398932693,1766005839328,-1447.42116389,0.0001343,2]
[398932694,1766005839338,-195.0,0.0001353,2]
[398932695,1766005839347,-1500.0,0.00013599,2]
[398932696,1766005839357,-19623.67049748,0.0001361,2]
[398932697,1766005839371,-340.14569907,0.00013641,2]
[398932698,1766005839381,-500.0,0.00013647,2]
[398932699,1766005839390,-1620.49,0.00013665,2]
[398932700,1766005839400,-1863.87983717,0.00013688,2]
[398932701,1766005839411,-500.0,0.00013698,2]
[398932702,1766005839420,-500.0,0.00013698,2]
[398932703,1766005839430,-500.0,0.00013698,2]
[398932704,1766005839441,-500.0,0.00013698,2]
[398932705,1766005839451,-500.0,0.00013698,2]
[398932706,1766005839460,-500.0,0.00013698,2]
[398932707,1766005839469,-500.0,0.00013698,2]
[398932708,1766005839478,-532.30126089,0.00013698,2]
[398932709,1766005839488,-500.0,0.00013698,2]
[398932710,1766005839497,-500.0,0.00013698,2]
[398932711,1766005839506,-500.0,0.00013698,2]
[398932712,1766005839515,-586.97867611,0.00013698,2]
[398932713,1766005839525,-500.0,0.00013698,2]
[398932714,1766005839534,-500.0,0.00013698,2]
[398932715,1766005839543,-460.64,0.00013698,2]
[398932716,1766005839552,-500.0,0.00013698,2]
[398932717,1766005839561,-500.0,0.00013698,2]
[398932718,1766005839570,-500.0,0.00013698,2]
[398932719,1766005839579,-500.0,0.00013698,2]
[398932720,1766005839588,-500.0,0.00013698,2]
[398932721,1766005839597,-500.0,0.00013698,2]
[398932722,1766005839606,-500.0,0.00013698,2]
[398932723,1766005839615,-500.0,0.00013698,2]
[398932724,1766005839624,-500.0,0.00013698,2]
[398932725,1766005839634,-500.0,0.00013698,2]
[398932726,1766005839643,-500.0,0.00013698,2]
[398932727,1766005839652,-500.0,0.00013698,2]
[398932728,1766005839661,-500.0,0.00013698,2]
[398932729,1766005839670,-500.0,0.00013698,2]
[398932730,1766005839679,-500.0,0.00013698,2]
[398932731,1766005839688,-500.0,0.00013698,2]
[398932732,1766005839697,-500.0,0.00013698,2]
[398932733,1766005839706,-500.0,0.00013698,2]
[398932734,1766005839715,-504.44339488,0.00013698,2]
[398932735,1766005839725,-286.90864955,0.00013698,2]
[398932736,1766005839734,-500.0,0.00013698,2]
[398932737,1766005839743,-500.0,0.00013698,2]
[398932738,1766005839752,-500.0,0.00013698,2]
[398932739,1766005839761,-500.0,0.00013698,2]
[398932740,1766005839770,-500.0,0.00013698,2]
[398932741,1766005839779,-500.0,0.00013698,2]
[398932742,1766005839788,-500.0,0.00013698,2]
[398932743,1766005839798,-500.0,0.00013698,2]
[398932744,1766005839808,-500.0,0.00013698,2]
[398932745,1766005839817,-500.0,0.00013698,2]
[398932746,1766005839827,-500.0,0.00013698,2]
[398932747,1766005839836,-500.0,0.00013698,2]
[398932748,1766005839845,-500.0,0.00013698,2]
[398932750,1766005839855,-500.0,0.00013698,2]
[398932752,1766005839864,-641.1096514,0.00013698,2]
[398932753,1766005839873,-500.0,0.00013698,2]
[398932754,1766005839883,-500.0,0.00013698,2]
[398932755,1766005839892,-500.0,0.00013698,2]
[398932756,1766005839902,-500.0,0.00013698,2]
[398932757,1766005839912,-500.0,0.00013698,2]
[398932758,1766005839921,-500.0,0.00013698,2]
[398932759,1766005839930,-500.0,0.00013698,2]
[398932760,1766005839949,-500.0,0.00013698,2]
[398932761,1766005839959,-500.0,0.00013698,2]
[398932762,1766005839969,-500.0,0.00013698,2]
[398932763,1766005839978,-500.0,0.00013698,2]
[398932764,1766005839987,-500.0,0.00013698,2]
[398932765,1766005839997,-500.0,0.00013698,2]
[398932766,1766005840006,-500.0,0.00013698,2]
[398932767,1766005840016,-500.0,0.00013698,2]
[398932768,1766005840026,-500.0,0.00013698,2]
[398932769,1766005840035,-500.0,0.00013698,2]
[398932770,1766005840045,-300.24817944,0.00013698,2]
[398932771,1766005840055,-500.0,0.00013698,2]
[398932772,1766005840064,-500.0,0.00013698,2]
[398932773,1766005840073,-500.0,0.00013698,2]
[398932774,1766005840082,-500.0,0.00013698,2]
[398932775,1766005840093,-500.0,0.00013698,2]
[398932776,1766005840103,-500.0,0.00013698,2]
[398932777,1766005840112,-500.0,0.00013698,2]
[398932778,1766005840121,-500.0,0.00013698,2]
[398932779,1766005840131,-500.0,0.00013698,2]
[398932780,1766005840140,-500.0,0.00013698,2]
[398932781,1766005840150,-500.0,0.00013698,2]
[398932782,1766005840159,-500.0,0.00013698,2]
[398932783,1766005840169,-500.0,0.00013698,2]
[398932784,1766005840178,-500.0,0.00013698,2]
[398932785,1766005840188,-500.0,0.00013698,2]
[398932786,1766005840197,-500.0,0.00013698,2]
[398932787,1766005840207,-500.0,0.00013698,2]
[398932788,1766005840216,-500.0,0.00013698,2]
[398932789,1766005840225,-500.0,0.00013698,2]
[398932790,1766005840235,-500.0,0.00013698,2]
[398932791,1766005840244,-500.0,0.00013698,2]
[398932792,1766005840253,-500.0,0.00013698,2]
[398932793,1766005840263,-500.0,0.00013698,2]
[398932794,1766005840273,-500.0,0.00013698,2]
[398932795,1766005840283,-500.0,0.00013698,2]
[398932796,1766005840293,-500.0,0.00013698,2]
[398932797,1766005840306,-500.0,0.00013698,2]
[398932798,1766005840316,-500.0,0.00013698,2]
[398932800,1766005840325,-500.0,0.00013698,2]
[398932802,1766005840335,-500.0,0.00013698,2]
[398932804,1766005840344,-500.0,0.00013698,2]
[398932806,1766005840353,-500.0,0.00013698,2]
[398932808,1766005840363,-500.0,0.00013698,2]
[398932810,1766005840376,-500.0,0.00013698,2]
[398932812,1766005840386,-500.0,0.00013698,2]
[398932814,1766005840396,-500.0,0.00013698,2]
[398932816,1766005840406,-500.0,0.00013698,2]
[398932819,1766005840416,-500.0,0.00013698,2]
[398932821,1766005840426,-500.0,0.00013698,2]
[398932823,1766005840435,-500.0,0.00013698,2]
[398932825,1766005840446,-500.0,0.00013698,2]
[398932827,1766005840456,-500.0,0.00013698,2]
[398932829,1766005840466,-500.0,0.00013698,2]
[398932831,1766005840475,-500.0,0.00013698,2]
[398932833,1766005840485,-500.0,0.00013698,2]
[398932835,1766005840495,-500.0,0.00013698,2]
[398932837,1766005840504,-500.0,0.00013698,2]
[398932839,1766005840514,-500.0,0.00013698,2]
[398932841,1766005840524,-500.0,0.00013698,2]
[398932843,1766005840533,-500.0,0.00013698,2]
[398932845,1766005840543,-500.0,0.00013698,2]
[398932847,1766005840553,-500.0,0.00013698,2]
[398932849,1766005840563,-500.0,0.00013698,2]
[398932852,1766005840572,-500.0,0.00013698,2]
[398932854,1766005840582,-500.0,0.00013698,2]
[398932856,1766005840591,-500.0,0.00013698,2]
[398932858,1766005840601,-610.37514729,0.00013698,2]
[398932860,1766005840611,-500.0,0.00013698,2]
[398932862,1766005840620,-500.0,0.00013698,2]
[398932864,1766005840630,-4706.37,0.00013698,2]
[398932866,1766005840641,-4706.37,0.00013698,2]
[398932868,1766005840651,-4706.37,0.00013698,2]
[398932870,1766005840661,-4706.37,0.00013698,2]
[398932872,1766005840671,-4706.37,0.00013698,2]
[398932874,1766005840680,-4706.37,0.00013698,2]
[398932876,1766005840690,-4706.37,0.00013698,2]
[398932878,1766005840699,-4706.37,0.00013698,2]
[398932881,1766005840709,-4706.37,0.00013698,2]
[398932883,1766005840718,-4706.37,0.00013698,2]
[398932885,1766005840729,-4706.37,0.00013698,2]
[398932887,1766005840739,-4706.37,0.00013698,2]
[398932889,1766005840748,-4706.37,0.00013698,2]
[398932891,1766005840757,-4706.37,0.00013698,2]
[398932893,1766005840767,-500.0,0.00013698,2]
[398932895,1766005840776,-500.0,0.00013698,2]
[398932897,1766005840785,-530.90558396,0.00013698,2]
[398932899,1766005840794,-4706.37,0.00013698,2]
[398932901,1766005840805,-4706.37,0.00013698,2]
[398932903,1766005840815,-4706.37,0.00013698,2]
[398932905,1766005840825,-4706.37,0.00013698,2]
[398932907,1766005840834,-4706.37,0.00013698,2]
[398932909,1766005840843,-4706.37,0.00013698,2]
[398932911,1766005840853,-4706.37,0.00013698,2]
[398932913,1766005840863,-4706.37,0.00013698,2]
[398932915,1766005840872,-4706.37,0.00013698,2]
[398932917,1766005840882,-4706.52747309,0.00013698,2]
[398932919,1766005840891,-300.0,0.00013698,2]
[398932921,1766005840901,-300.0,0.00013698,2]
[398932923,1766005840910,-300.0,0.00013698,2]
[398932925,1766005840919,-500.0,0.00013698,2]
[398932928,1766005840928,-300.0,0.00013698,2]
[398932930,1766005840938,-500.0,0.00013698,2]
[398932932,1766005840947,-300.0,0.00013698,2]
[398932933,1766005840958,-300.0,0.00013698,2]
[398932935,1766005840967,-500.0,0.00013698,2]
[398932937,1766005840976,-300.0,0.00013698,2]
[398932939,1766005840985,-300.0,0.00013698,2]
[398932941,1766005840995,-300.0,0.00013698,2]
[398932943,1766005841005,-358.88934253,0.00013698,2]
[398932945,1766005841014,-500.0,0.00013698,2]
[398932948,1766005841023,-503.92687303,0.00013698,2]
[398932950,1766005841033,-500.0,0.00013698,2]
[398932952,1766005841042,-500.0,0.00013698,2]
[398932954,1766005841052,-514.23721699,0.00013698,2]
[398932956,1766005841061,-500.0,0.00013698,2]
[398932958,1766005841071,-500.0,0.00013698,2]
[398932960,1766005841081,-500.0,0.00013698,2]
[398932962,1766005841091,-500.0,0.00013698,2]
[398932964,1766005841100,-500.0,0.00013698,2]